bitfinex/quotes_BTCUSD_20230906
["timestamp","ask_amount","ask_price","bid_price","bid_amount"]
[1694018446591,0.14009931,25621.0,25620.0,2.95409354]
[1694018446818,0.23356266,25621.0,25620.0,2.95409354]
[1694018447016,0.23356266,25621.0,25620.0,3.0225615]
[1694018448742,0.09346335,25621.0,25620.0,3.0225615]
[1694018449298,0.09346335,25621.0,25620.0,3.0615615]
[1694018450215,0.09346335,25621.0,25620.0,2.87099354]
[1694018452261,0.24616335,25621.0,25620.0,2.87099354]
[1694018453306,0.1527,25621.0,25620.0,2.87099354]
[1694018457147,0.1527,25621.0,25620.0,0.52907354]
[1694018457345,0.24616335,25621.0,25620.0,0.52907354]
[1694018457542,0.1527,25621.0,25620.0,0.52907354]
[1694018457799,2.30454543,25621.0,25620.0,0.14242827]
[1694018458037,3.08515443,25621.0,25620.0,0.14242827]
[1694018458870,3.08515443,25621.0,25620.0,0.12342827]
[1694018459079,3.08515443,25621.0,25620.0,0.13342827]
[1694018459897,3.08515443,25621.0,25620.0,0.12342827]
[1694018460101,3.08515443,25621.0,25620.0,0.12542827]
[1694018460952,3.27200724,25621.0,25620.0,0.12542827]
[1694018461162,2.02287081,25621.0,25620.0,0.12542827]
[1694018461568,1.24226181,25621.0,25620.0,0.12542827]
[1694018461774,1.38241062,25621.0,25620.0,0.12542827]
[1694018461990,0.46165281,25621.0,25620.0,0.12542827]
[1694018462202,0.41495211,25621.0,25620.0,0.12542827]
[1694018462401,1.38243056,25621.0,25620.0,0.12542827]
[1694018462609,1.24227845,25621.0,25620.0,0.12542827]
[1694018463947,0.38631082,25621.0,25620.0,3.63463354]
[1694018464157,0.34634618,25622.0,25620.0,3.63463354]
[1694018464369,0.34634618,25622.0,25621.0,0.39007354]
[1694018464578,0.34634618,25622.0,25621.0,3.61250954]
[1694018465457,0.50434618,25622.0,25621.0,3.61250954]
[1694018466037,0.4109,25622.0,25621.0,3.61250954]
[1694018466375,0.4139,25622.0,25621.0,3.61250954]
[1694018467044,0.4109,25622.0,25621.0,3.61250954]
[1694018467244,0.158,25622.0,25621.0,4.09986049]
[1694018467452,0.09344618,25623.0,25622.0,0.00342827]
[1694018467664,0.0196,25624.0,25623.0,0.00342827]
[1694018467872,0.0196,25624.0,25623.0,2.05116954]
[1694018468095,0.0196,25624.0,25623.0,3.61226554]
[1694018468311,0.0196,25624.0,25623.0,3.94880815]
[1694018468497,0.0196,25624.0,25623.0,3.97180815]
[1694018469131,0.0196,25624.0,25623.0,4.50490815]
[1694018469327,0.0196,25624.0,25623.0,4.86490815]
[1694018470550,0.0196,25624.0,25623.0,4.74280815]
[1694018470976,0.0196,25624.0,25623.0,4.76780815]
[1694018472127,0.0196,25624.0,25623.0,4.88990815]
[1694018473574,0.0196,25624.0,25623.0,4.14236554]
[1694018475785,0.0146,25624.0,25623.0,4.14236554]
[1694018479177,0.0096,25624.0,25623.0,4.14236554]
[1694018482501,0.0096,25624.0,25623.0,4.17316918]
[1694018484931,0.0096,25624.0,25623.0,4.21316918]
[1694018485334,0.0096,25624.0,25623.0,4.59981445]
[1694018485830,0.0096,25624.0,25623.0,5.01081445]
[1694018495181,0.0096,25624.0,25623.0,4.98581445]
[1694018495584,0.0096,25624.0,25623.0,5.01081445]
[1694018495983,0.0096,25624.0,25623.0,4.98581445]
[1694018496416,0.0096,25624.0,25623.0,4.88871445]
[1694018496831,0.0096,25624.0,25623.0,5.01081445]
[1694018497456,0.0096,25624.0,25623.0,1.65562154]
[1694018497667,0.30096602,25624.0,25623.0,0.48842827]
[1694018497873,0.45436602,25624.0,25623.0,1.26897627]
[1694018498286,0.45436602,25624.0,25623.0,0.48842827]
[1694018498911,0.45436602,25624.0,25623.0,0.10342827]
[1694018498912,0.57646602,25624.0,25623.0,0.10342827]
[1694018499117,1.35698402,25624.0,25623.0,0.12842827]
[1694018499734,0.57646602,25624.0,25623.0,0.10342827]
[1694018500342,0.57646602,25624.0,25623.0,0.12842827]
[1694018500726,0.57646602,25624.0,25623.0,0.10342827]
[1694018502155,0.57646602,25624.0,25623.0,0.12842827]
[1694018502764,0.57646602,25624.0,25623.0,0.10342827]
[1694018502970,0.57646602,25624.0,25623.0,0.12242827]
[1694018506083,0.2851,25624.0,25623.0,0.12242827]
[1694018506253,0.2851,25624.0,25623.0,0.90297627]
[1694018506783,0.163,25624.0,25623.0,3.09712947]
[1694018506984,0.163,25624.0,25623.0,3.87767747]
[1694018509395,0.0096,25624.0,25623.0,4.05977747]
[1694018509596,0.0096,25624.0,25623.0,4.38277747]
[1694018510478,0.0096,25624.0,25623.0,4.67167747]
[1694018511570,0.0096,25624.0,25623.0,4.01426554]
[1694018512285,0.0096,25624.0,25623.0,3.99526554]
[1694018512651,0.0096,25624.0,25623.0,4.01426554]
[1694018513030,0.0096,25624.0,25623.0,3.99526554]
[1694018513435,0.0096,25624.0,25623.0,4.02026554]
[1694018521729,0.1622,25624.0,25623.0,4.02026554]
[1694018522224,0.1622,25624.0,25623.0,4.03942906]
[1694018523231,0.1622,25624.0,25623.0,4.07028563]
[1694018524247,0.1622,25624.0,25623.0,3.26673763]
[1694018524927,0.1622,25624.0,25623.0,0.14759179]
[1694018524928,0.63883296,25624.0,25623.0,0.14759179]
[1694018525156,0.73225623,25624.0,25623.0,0.14759179]
[1694018525341,1.51277423,25624.0,25623.0,0.14759179]
[1694018525568,0.73225623,25624.0,25623.0,0.14759179]
[1694018525790,0.59209159,25624.0,25623.0,0.12259179]
[1694018526551,1.37260959,25624.0,25623.0,0.14159179]
[1694018526790,1.37260959,25624.0,25623.0,0.12259179]
[1694018527028,0.59209159,25624.0,25623.0,0.12259179]
[1694018527277,0.8256784,25624.0,25623.0,0.14159179]
[1694018527831,0.59209159,25624.0,25623.0,0.14159179]
[1694018528130,1.6061964,25624.0,25623.0,0.14159179]
[1694018528673,2.15312759,25624.0,25623.0,0.14159179]
[1694018529349,2.15312759,25624.0,25623.0,0.13816352]
[1694018529350,3.729363,25624.0,25623.0,0.13816352]
[1694018532498,3.867526,25624.0,25623.0,0.13816352]
[1694018534377,3.867526,25624.0,25623.0,0.15816352]
[1694018534595,3.087008,25624.0,25623.0,0.15816352]
[1694018536212,3.32064521,25624.0,25623.0,0.15816352]
[1694018536994,4.10116321,25624.0,25623.0,0.15816352]
[1694018541206,4.05443296,25624.0,25623.0,0.15816352]
[1694018542295,4.28807017,25624.0,25623.0,0.15816352]
[1694018542795,4.22807017,25624.0,25623.0,0.15816352]
[1694018544228,3.99443296,25624.0,25623.0,0.15816352]
[1694018546100,3.21391496,25624.0,25623.0,0.15816352]
[1694018546943,2.97092396,25624.0,25623.0,0.15816352]
[1694018549601,2.19040596,25624.0,25623.0,0.15816352]
[1694018552248,2.97092396,25624.0,25623.0,0.15816352]
[1694018554284,3.20456117,25624.0,25623.0,0.15816352]
[1694018556250,3.01765421,25624.0,25623.0,0.15816352]
[1694018558505,3.20463492,25624.0,25623.0,0.15816352]
[1694018558709,3.01765421,25624.0,25623.0,0.15816352]
[1694018560769,3.20468174,25624.0,25623.0,0.15816352]
[1694018561034,3.01765421,25624.0,25623.0,0.15816352]
[1694018564230,2.784017,25624.0,25623.0,0.15816352]
[1694018570120,2.764017,25624.0,25623.0,0.15816352]
[1694018571352,3.04432117,25624.0,25623.0,0.15816352]
[1694018571546,4.36862246,25624.0,25623.0,0.15816352]
[1694018571868,4.189852,25624.0,25623.0,0.15816352]
[1694018572099,4.266952,25624.0,25623.0,0.15816352]
[1694018572346,4.262872,25624.0,25623.0,0.15816352]
[1694018572548,4.262452,25624.0,25623.0,0.15816352]
[1694018572745,4.260052,25624.0,25623.0,0.11916352]
[1694018572948,4.259632,25624.0,25623.0,0.11916352]
[1694018573149,4.189852,25624.0,25623.0,0.11916352]
[1694018573378,4.192852,25624.0,25623.0,0.12116352]
[1694018574585,4.260592,25624.0,25623.0,0.02116352]
[1694018574739,4.258612,25624.0,25623.0,0.12116352]
[1694018574941,4.262952,25624.0,25623.0,0.12316352]
[1694018575170,4.262712,25624.0,25623.0,0.12316352]
[1694018575378,4.257412,25624.0,25623.0,0.11916352]
[1694018575537,4.257292,25624.0,25623.0,0.01916352]
[1694018575915,4.259932,25624.0,25623.0,0.12116352]
[1694018576109,4.260052,25624.0,25623.0,0.12116352]
[1694018576315,4.57792262,25624.0,25623.0,0.12316352]
[1694018576532,4.67523727,25624.0,25623.0,0.12316352]
[1694018576670,4.68447727,25624.0,25623.0,0.02316352]
[1694018576887,4.68477727,25624.0,25623.0,0.02316352]
[1694018577061,4.68447727,25624.0,25623.0,0.02316352]
[1694018577280,4.68441727,25624.0,25623.0,0.02316352]
[1694018577480,4.68495727,25624.0,25623.0,0.02316352]
[1694018577677,4.68417727,25624.0,25623.0,0.02316352]
[1694018577882,4.68411727,25624.0,25623.0,0.02316352]
[1694018578279,4.68441727,25624.0,25623.0,0.02316352]
[1694018578501,4.68459727,25624.0,25623.0,0.02316352]
[1694018578702,4.68873727,25624.0,25623.0,0.02316352]
[1694018578902,4.68735727,25624.0,25623.0,0.02316352]
[1694018579103,4.68633727,25624.0,25623.0,0.02316352]
[1694018579532,4.68639727,25624.0,25623.0,0.12316352]
[1694018579767,4.68591727,25624.0,25623.0,0.12316352]
[1694018579989,4.68609727,25624.0,25623.0,0.02316352]
[1694018580341,4.288052,25624.0,25623.0,0.02316352]
[1694018580530,4.286552,25624.0,25623.0,0.02316352]
[1694018580735,4.287092,25624.0,25623.0,0.12316352]
[1694018580891,4.286972,25624.0,25623.0,0.12316352]
[1694018581098,4.286552,25624.0,25623.0,0.02316352]
[1694018581548,4.287452,25624.0,25623.0,0.02316352]
[1694018581770,4.288712,25624.0,25623.0,0.02316352]
[1694018581975,4.287392,25624.0,25623.0,0.02316352]
[1694018582131,4.285592,25624.0,25623.0,0.12316352]
[1694018582342,4.38275401,25624.0,25623.0,0.02316352]
[1694018582547,4.36991872,25624.0,25623.0,0.12316352]
[1694018582728,4.29921202,25624.0,25623.0,0.12316352]
[1694018585773,3.98327345,25624.0,25623.0,0.12316352]
[1694018585907,4.29921202,25624.0,25623.0,0.12316352]
[1694018586334,3.98327345,25624.0,25623.0,0.12316352]
[1694018586851,4.29921202,25624.0,25623.0,0.12316352]
[1694018588429,4.27921202,25624.0,25623.0,0.12316352]
[1694018589860,4.0020453,25624.0,25623.0,0.12316352]
[1694018590063,4.25091416,25624.0,25623.0,0.12316352]
[1694018590565,4.0020453,25624.0,25623.0,0.12316352]
[1694018590719,4.00051822,25624.0,25623.0,0.12316352]
[1694018593245,4.58258349,25624.0,25623.0,0.12316352]
[1694018593583,4.58060349,25624.0,25623.0,0.12316352]
[1694018593819,4.58066349,25624.0,25623.0,0.12316352]
[1694018594027,4.58090349,25624.0,25623.0,0.12316352]
[1694018594236,4.58078349,25624.0,25623.0,0.12316352]
[1694018594418,4.58066349,25624.0,25623.0,0.12316352]
[1694018594617,4.58060349,25624.0,25623.0,0.12316352]
[1694018595050,4.66409019,25624.0,25623.0,0.02316352]
[1694018595259,4.65851019,25624.0,25623.0,0.02316352]
[1694018595392,4.97475881,25624.0,25623.0,0.02316352]
[1694018595592,4.97469881,25624.0,25623.0,0.12316352]
[1694018595794,4.97463881,25624.0,25623.0,0.12316352]
[1694018595996,4.97457881,25624.0,25623.0,0.02316352]
[1694018596195,4.97433881,25624.0,25623.0,0.02316352]
[1694018596495,4.59171354,25624.0,25623.0,0.02316352]
[1694018596699,4.59159354,25624.0,25623.0,0.02316352]
[1694018596899,4.58781354,25624.0,25623.0,0.12316352]
[1694018597104,4.57779354,25624.0,25623.0,0.12316352]
[1694018597301,4.57791354,25624.0,25623.0,0.12316352]
[1694018597501,4.57791354,25624.0,25623.0,0.02316352]
[1694018597502,4.57641354,25624.0,25623.0,0.02316352]
[1694018597726,4.57665354,25624.0,25623.0,0.02316352]
[1694018597928,4.57659354,25624.0,25623.0,0.02316352]
[1694018598375,4.57803354,25624.0,25623.0,0.02316352]
[1694018598632,4.96761881,25624.0,25623.0,0.02316352]
[1694018598866,4.58901354,25624.0,25623.0,0.02316352]
[1694018599070,4.58697354,25624.0,25623.0,0.02316352]
[1694018599359,4.58889354,25624.0,25623.0,0.02316352]
[1694018599561,4.58757354,25624.0,25623.0,0.02316352]
[1694018599768,4.58649354,25624.0,25623.0,0.02316352]
[1694018599919,4.58451354,25624.0,25623.0,0.02316352]
[1694018600130,4.58217354,25624.0,25623.0,0.02316352]
[1694018600324,4.58199354,25624.0,25623.0,0.02316352]
[1694018600524,4.58193354,25624.0,25623.0,0.02316352]
[1694018600730,4.58187354,25624.0,25623.0,0.02316352]
[1694018601073,4.58445354,25624.0,25623.0,0.02316352]
[1694018601208,4.58433354,25624.0,25623.0,0.02316352]
[1694018601435,4.58427354,25624.0,25623.0,0.02316352]
[1694018601799,4.58421354,25624.0,25623.0,0.02316352]
[1694018602100,4.58385354,25624.0,25623.0,0.02316352]
[1694018602280,4.58409354,25624.0,25623.0,0.02316352]
[1694018602431,4.58355354,25624.0,25623.0,0.02316352]
[1694018602655,4.58349354,25624.0,25623.0,0.02316352]
[1694018602845,4.58343354,25624.0,25623.0,0.02316352]
[1694018603050,4.58337354,25624.0,25623.0,0.02316352]
[1694018603248,4.57839354,25624.0,25623.0,0.02316352]
[1694018603453,4.50909354,25624.0,25623.0,0.02316352]
[1694018603654,4.31881334,25624.0,25623.0,0.02316352]
[1694018604462,4.31881334,25624.0,25623.0,0.12316352]
[1694018605439,3.81006807,25624.0,25623.0,0.12316352]
[1694018608533,1.3346503,25624.0,25623.0,0.12316352]
[1694018608690,1.83437192,25624.0,25623.0,0.12316352]
[1694018611324,2.1151683,25624.0,25623.0,0.12316352]
[1694018611730,2.8956863,25624.0,25623.0,0.12316352]
[1694018612253,2.1151683,25624.0,25623.0,0.12316352]
[1694018612449,2.1151683,25624.0,25623.0,0.14256895]
[1694018613070,1.83437192,25624.0,25623.0,0.14256895]
[1694018614309,2.1151683,25624.0,25623.0,0.14256895]
[1694018614890,2.8956863,25624.0,25623.0,0.14256895]
[1694018615279,2.1151683,25624.0,25623.0,0.14256895]
[1694018616483,2.8956863,25624.0,25623.0,0.14256895]
[1694018626748,2.7668408,25624.0,25623.0,0.14256895]
[1694018626955,2.9283408,25624.0,25623.0,0.14256895]
[1694018627160,3.7088588,25624.0,25623.0,0.14256895]
[1694018627791,3.8651118,25624.0,25623.0,0.14256895]
[1694018629601,3.9872118,25624.0,25623.0,0.14256895]
[1694018629753,4.01286654,25624.0,25623.0,0.14256895]
[1694018631092,4.39951181,25624.0,25623.0,0.14256895]
[1694018631294,4.64788019,25624.0,25623.0,0.14256895]
[1694018631493,4.25067492,25624.0,25623.0,0.04256895]
[1694018631739,4.25367492,25624.0,25623.0,0.04256895]
[1694018631949,4.24833492,25624.0,25623.0,0.04256895]
[1694018632098,4.24581492,25624.0,25623.0,0.04256895]
[1694018632294,4.24767492,25624.0,25623.0,0.04256895]
[1694018632498,4.24497492,25624.0,25623.0,0.04256895]
[1694018632750,4.24791492,25624.0,25623.0,0.04256895]
[1694018632963,4.24605492,25624.0,25623.0,0.04256895]
[1694018633166,4.24587492,25624.0,25623.0,0.04256895]
[1694018633378,4.24593492,25624.0,25623.0,0.04256895]
[1694018633586,4.24575492,25624.0,25623.0,0.04256895]
[1694018633792,4.24587492,25624.0,25623.0,0.04256895]
[1694018633991,4.24599492,25624.0,25623.0,0.04256895]
[1694018634199,4.25517492,25624.0,25623.0,0.04256895]
[1694018634348,4.25475492,25624.0,25623.0,0.04256895]
[1694018634789,4.25157492,25624.0,25623.0,0.04256895]
[1694018635139,4.24563492,25624.0,25623.0,0.04256895]
[1694018635338,4.24413492,25624.0,25623.0,0.04256895]
[1694018635732,4.24449492,25624.0,25623.0,0.04256895]
[1694018636046,4.24275492,25624.0,25623.0,0.04256895]
[1694018636536,4.24269492,25624.0,25623.0,0.04256895]
[1694018636731,4.24407492,25624.0,25623.0,0.04256895]
[1694018636911,4.24425492,25624.0,25623.0,0.04256895]
[1694018637111,4.24413492,25624.0,25623.0,0.04256895]
[1694018637313,4.24395492,25624.0,25623.0,0.04256895]
[1694018637513,4.24401492,25624.0,25623.0,0.04256895]
[1694018637723,4.24263492,25624.0,25623.0,0.04256895]
[1694018638070,4.24401492,25624.0,25623.0,0.04256895]
[1694018638276,4.24227492,25624.0,25623.0,0.04256895]
[1694018638505,4.24095492,25624.0,25623.0,0.04256895]
[1694018638719,4.24101492,25624.0,25623.0,0.04256895]
[1694018638886,4.24119492,25624.0,25623.0,0.14256895]
[1694018639104,4.24107492,25624.0,25623.0,0.14256895]
[1694018639505,4.24113492,25624.0,25623.0,0.14256895]
[1694018639941,4.24065492,25624.0,25623.0,0.14256895]
[1694018640137,4.24071492,25624.0,25623.0,0.14256895]
[1694018640397,4.24029492,25624.0,25623.0,0.14256895]
[1694018640572,4.22323492,25624.0,25623.0,0.04256895]
[1694018640959,4.22347492,25624.0,25623.0,0.04256895]
[1694018641198,4.22359492,25624.0,25623.0,0.04256895]
[1694018641400,4.22377492,25624.0,25623.0,0.04256895]
[1694018641599,4.22407492,25624.0,25623.0,0.04256895]
[1694018641758,4.22485492,25624.0,25623.0,0.04256895]
[1694018641957,4.22419492,25624.0,25623.0,0.04256895]
[1694018642133,4.22425492,25624.0,25623.0,0.04256895]
[1694018642335,4.21453492,25624.0,25623.0,0.04256895]
[1694018642539,4.21423492,25624.0,25623.0,0.04256895]
[1694018642781,4.21393492,25624.0,25623.0,0.04256895]
[1694018643188,4.24539848,25624.0,25623.0,0.04256895]
[1694018643347,4.24641848,25624.0,25623.0,0.04256895]
[1694018643558,4.24707848,25624.0,25623.0,0.04256895]
[1694018643746,4.24545848,25624.0,25623.0,0.04256895]
[1694018643947,4.24479848,25624.0,25623.0,0.04256895]
[1694018644247,4.55990385,25624.0,25623.0,0.04256895]
[1694018644449,4.55744385,25624.0,25623.0,0.04256895]
[1694018644647,4.55762385,25624.0,25623.0,0.04256895]
[1694018644874,4.55768385,25624.0,25623.0,0.04256895]
[1694018645002,4.55726385,25624.0,25623.0,0.14256895]
[1694018645202,4.56050385,25624.0,25623.0,0.14256895]
[1694018645403,4.56110385,25624.0,25623.0,0.14256895]
[1694018645674,4.56104385,25624.0,25623.0,0.14256895]
[1694018645852,4.56188385,25624.0,25623.0,0.14256895]
[1694018646164,4.56194385,25624.0,25623.0,0.14256895]
[1694018646455,4.56170385,25624.0,25623.0,0.14256895]
[1694018646682,4.56164385,25624.0,25623.0,0.14256895]
[1694018646883,4.56152385,25624.0,25623.0,0.14256895]
[1694018647084,4.56242385,25624.0,25623.0,0.14256895]
[1694018647289,4.56104385,25624.0,25623.0,0.14256895]
[1694018647496,4.56098385,25624.0,25623.0,0.14256895]
[1694018647703,4.56134385,25624.0,25623.0,0.14256895]
[1694018647838,4.56260385,25624.0,25623.0,0.14256895]
[1694018648079,4.25805848,25624.0,25623.0,0.14256895]
[1694018648292,0.05657173,25620.0,25614.0,0.00342827]
[1694018648507,0.05657173,25620.0,25610.0,0.06499924]
[1694018648508,0.31574235,25616.0,25610.0,0.06499924]
[1694018648727,0.09357467,25611.0,25610.0,0.06499924]
[1694018648933,0.09357467,25611.0,25610.0,2.50783124]
[1694018649147,0.140362,25612.0,25610.0,2.50783124]
[1694018649148,0.23393667,25612.0,25610.0,2.50783124]
[1694018649354,0.21479969,25612.0,25610.0,2.50783124]
[1694018649768,0.001,25611.0,25610.0,2.52183124]
[1694018650385,0.1231,25611.0,25610.0,0.56564451]
[1694018651413,0.1231,25611.0,25610.0,0.17899924]
[1694018651621,0.1231,25611.0,25610.0,0.96594324]
[1694018652024,0.1231,25611.0,25610.0,1.74088724]
[1694018652231,0.1241,25611.0,25610.0,1.75488724]
[1694018652569,0.1241,25611.0,25610.0,0.97394324]
[1694018652980,0.34611843,25611.0,25610.0,0.97394324]
[1694018653190,0.34611843,25611.0,25610.0,0.19299924]
[1694018653191,1.39545568,25611.0,25610.0,0.19299924]
[1694018653741,1.12703243,25611.0,25610.0,0.19299924]
[1694018656114,1.90794643,25611.0,25610.0,0.19299924]
[1694018657336,2.68886043,25611.0,25610.0,0.128]
[1694018657929,3.46977443,25611.0,25610.0,0.128]
[1694018658520,2.68886043,25611.0,25610.0,0.128]
[1694018659851,3.46977443,25611.0,25610.0,0.128]
[1694018660022,2.68886043,25611.0,25610.0,0.128]
[1694018661782,3.46977443,25611.0,25610.0,0.128]
[1694018662383,3.81675187,25611.0,25610.0,0.128]
[1694018663424,3.59473344,25611.0,25610.0,0.128]
[1694018663845,3.87812597,25611.0,25610.0,0.128]
[1694018664204,3.09721197,25611.0,25610.0,0.128]
[1694018664406,2.75023453,25611.0,25610.0,0.128]
[1694018664807,1.685928,25611.0,25610.0,0.128]
[1694018665425,0.905014,25611.0,25610.0,0.128]
[1694018665772,1.685928,25611.0,25610.0,0.128]
[1694018665978,0.905014,25611.0,25610.0,0.128]
[1694018668045,1.685928,25611.0,25610.0,0.128]
[1694018668643,2.466842,25611.0,25610.0,0.128]
[1694018669439,1.685928,25611.0,25610.0,0.128]
[1694018669867,2.466842,25611.0,25610.0,0.128]
[1694018673159,2.4246261,25611.0,25610.0,0.128]
[1694018675637,1.6437121,25611.0,25610.0,0.128]
[1694018676663,1.8063121,25611.0,25610.0,0.128]
[1694018677639,2.5872261,25611.0,25610.0,0.128]
[1694018678067,2.4246261,25611.0,25610.0,0.128]
[1694018678280,1.6437121,25611.0,25610.0,0.128]
[1694018678728,1.8063121,25611.0,25610.0,0.128]
[1694018682639,1.0253981,25611.0,25610.0,0.128]
[1694018690780,1.8063121,25611.0,25610.0,0.128]
[1694018690984,1.89969781,25611.0,25610.0,0.128]
[1694018691390,1.11878381,25611.0,25610.0,0.128]
[1694018692221,1.89969781,25611.0,25610.0,0.128]
[1694018692481,1.9466741,25611.0,25610.0,0.128]
[1694018692734,1.1657601,25611.0,25610.0,0.128]
[1694018693720,1.99346144,25611.0,25610.0,0.128]
[1694018694446,2.22739812,25611.0,25610.0,0.128]
[1694018695654,2.04024878,25611.0,25610.0,0.128]
[1694018698259,1.25933478,25611.0,25610.0,0.128]
[1694018698417,1.0253981,25611.0,25610.0,0.128]
[1694018702376,1.0253981,25611.0,25610.0,0.14460568]
[1694018705251,1.8063121,25611.0,25610.0,0.14460568]
[1694018705654,1.0253981,25611.0,25610.0,0.14460568]
[1694018706673,1.8063121,25611.0,25610.0,0.14460568]
[1694018707570,1.0253981,25611.0,25610.0,0.14460568]
[1694018710803,0.2847,25611.0,25610.0,0.14460568]
[1694018711005,1.065614,25611.0,25610.0,0.14460568]
[1694018711983,1.846528,25611.0,25610.0,0.14460568]
[1694018712806,2.12726959,25611.0,25610.0,0.14460568]
[1694018715558,3.17782836,25611.0,25610.0,0.14460568]
[1694018723270,4.07574286,25611.0,25610.0,0.14460568]
[1694018723477,4.33406432,25611.0,25610.0,0.14460568]
[1694018724476,3.94741905,25611.0,25610.0,0.14460568]
[1694018732770,3.98241981,25611.0,25610.0,0.14460568]
[1694018732971,3.98241981,25611.0,25610.0,0.14537101]
[1694018740442,3.44335676,25611.0,25610.0,0.14537101]
[1694018741029,3.44335676,25611.0,25610.0,0.14460568]
[1694018741256,3.83000203,25611.0,25610.0,0.14460568]
[1694018743406,4.09743387,25611.0,25610.0,0.14460568]
[1694018744271,3.83000203,25611.0,25610.0,0.14460568]
[1694018744476,4.2849273,25611.0,25610.0,0.14460568]
[1694018744684,4.2166473,25611.0,25610.0,0.14460568]
[1694018745701,4.2845673,25611.0,25610.0,0.14460568]
[1694018745900,4.2861873,25611.0,25610.0,0.14460568]
[1694018746105,4.2890673,25611.0,25610.0,0.14460568]
[1694018746347,4.2872073,25611.0,25610.0,0.14460568]
[1694018746556,4.2872673,25611.0,25610.0,0.14460568]
[1694018746732,4.2889473,25611.0,25610.0,0.14460568]
[1694018746948,4.2897873,25611.0,25610.0,0.14460568]
[1694018747112,4.2166473,25611.0,25610.0,0.14460568]
[1694018747328,3.65800204,25611.0,25610.0,0.14460568]
[1694018747887,3.65800204,25611.0,25610.0,0.14536236]
[1694018756946,3.65800204,25611.0,25610.0,0.14460568]
[1694018757985,3.65800204,25611.0,25610.0,0.14536197]
[1694018760995,3.65800204,25611.0,25610.0,0.14460568]
[1694018761845,3.51625676,25611.0,25610.0,0.14460568]
[1694018762054,4.3053273,25611.0,25610.0,0.14460568]
[1694018762233,4.3027473,25611.0,25610.0,0.14460568]
[1694018762375,4.3024473,25611.0,25610.0,0.14460568]
[1694018762577,4.3019073,25611.0,25610.0,0.14460568]
[1694018762774,4.3018473,25611.0,25610.0,0.14460568]
[1694018762991,4.3016673,25611.0,25610.0,0.14460568]
[1694018763190,4.3016073,25611.0,25610.0,0.13060568]
[1694018763439,4.3261873,25611.0,25610.0,0.13260568]
[1694018763773,4.3261273,25611.0,25610.0,0.13260568]
[1694018763971,4.3260073,25611.0,25610.0,0.11860568]
[1694018764189,4.3180873,25611.0,25610.0,0.11860568]
[1694018764388,4.63003394,25611.0,25610.0,0.12060568]
[1694018764685,4.3353473,25611.0,25610.0,0.12060568]
[1694018764841,4.3075273,25611.0,25610.0,0.11860568]
[1694018765044,4.53663178,25611.0,25610.0,0.11860568]
[1694018765239,4.53663178,25611.0,25610.0,0.12060568]
[1694018765444,4.56163178,25611.0,25610.0,0.12060568]
[1694018766968,4.14680597,25611.0,25610.0,0.12060568]
[1694018773352,4.21250597,25611.0,25610.0,0.12060568]
[1694018773559,3.95002203,25611.0,25610.0,0.12060568]
[1694018773768,3.96550203,25611.0,25610.0,0.12060568]
[1694018773983,3.96496203,25611.0,25610.0,0.12060568]
[1694018774168,4.3505273,25611.0,25610.0,0.12060568]
[1694018774349,4.3420673,25611.0,25610.0,0.12060568]
[1694018774549,4.3429673,25611.0,25610.0,0.12060568]
[1694018774772,4.56841939,25611.0,25610.0,0.12060568]
[1694018774972,4.57447939,25611.0,25610.0,0.12060568]
[1694018775177,4.57441939,25611.0,25610.0,0.12060568]
[1694018775428,4.57435939,25611.0,25610.0,0.12060568]
[1694018775629,4.3457273,25611.0,25610.0,0.12060568]
[1694018775824,4.3456673,25611.0,25610.0,0.12060568]
[1694018776023,4.3456073,25611.0,25610.0,0.12060568]
[1694018776273,4.3455473,25611.0,25610.0,0.12060568]
[1694018776481,4.3458473,25611.0,25610.0,0.12060568]
[1694018776690,4.3453673,25611.0,25610.0,0.12060568]
[1694018776990,4.3456673,25611.0,25610.0,0.12060568]
[1694018777161,4.3456073,25611.0,25610.0,0.12060568]
[1694018777358,4.57990498,25611.0,25610.0,0.12060568]
[1694018777563,4.57984498,25611.0,25610.0,0.12060568]
[1694018777767,4.57978498,25611.0,25610.0,0.12060568]
[1694018777944,4.58008498,25611.0,25610.0,0.12060568]
[1694018778121,4.58002498,25611.0,25610.0,0.12060568]
[1694018778327,4.57324498,25611.0,25610.0,0.12060568]
[1694018778570,4.50202498,25611.0,25610.0,0.12060568]
[1694018779419,4.11537971,25611.0,25610.0,0.12060568]
[1694018780170,4.43173472,25611.0,25610.0,0.12060568]
[1694018781452,4.11537971,25611.0,25610.0,0.12060568]
[1694018781624,4.43173472,25611.0,25610.0,0.12060568]
[1694018784762,4.11537971,25611.0,25610.0,0.12060568]
[1694018785336,4.18113971,25611.0,25610.0,0.12060568]
[1694018785539,4.4978707,25611.0,25610.0,0.12060568]
[1694018785764,4.49787054,25611.0,25610.0,0.12060568]
[1694018786081,4.18131971,25611.0,25610.0,0.12060568]
[1694018786286,4.18125971,25611.0,25610.0,0.12060568]
[1694018786589,4.18155971,25611.0,25610.0,0.12060568]
[1694018787035,4.18233971,25611.0,25610.0,0.12060568]
[1694018787238,4.18209971,25611.0,25610.0,0.12060568]
[1694018787442,4.18221971,25611.0,25610.0,0.12060568]
[1694018788072,4.18167971,25611.0,25610.0,0.12060568]
[1694018788271,4.18143971,25611.0,25610.0,0.12060568]
[1694018788634,4.11537971,25611.0,25610.0,0.12060568]
[1694018790176,4.43200738,25611.0,25610.0,0.12060568]
[1694018791945,4.43200738,25611.0,25610.0,0.1213621]
[1694018792773,4.43200738,25611.0,25610.0,0.14678378]
[1694018796899,4.81865265,25611.0,25610.0,0.14678378]
[1694018799303,4.43200738,25611.0,25610.0,0.14678378]
[1694018803771,4.11537971,25611.0,25610.0,0.14678378]
[1694018809358,4.43204094,25611.0,25610.0,0.14678378]
[1694018809563,4.43204004,25611.0,25610.0,0.14678378]
[1694018810948,4.11537971,25611.0,25610.0,0.14678378]
[1694018814859,4.11537971,25611.0,25610.0,0.14602736]
[1694018819516,4.43205691,25611.0,25610.0,0.14602736]
[1694018819690,4.81870218,25611.0,25610.0,0.14602736]
[1694018820292,4.43205691,25611.0,25610.0,0.14602736]
[1694018821717,3.10189764,25611.0,25610.0,0.14602736]
[1694018830740,3.10187262,25611.0,25610.0,0.14602736]
[1694018832394,3.88278662,25611.0,25610.0,0.14602736]
[1694018839034,0.36665218,25611.0,25610.0,0.94697136]
[1694018839312,0.28451962,25611.0,25610.0,4.04284003]
[1694018839516,0.47213192,25611.0,25610.0,4.04284003]
[1694018839726,0.2376123,25611.0,25610.0,4.04284003]
[1694018839925,0.28432157,25611.0,25610.0,4.04284003]
[1694018840140,0.14372863,25611.0,25610.0,4.04284003]
[1694018840474,0.32820524,25612.0,25611.0,0.06]
[1694018840670,0.32820524,25612.0,25611.0,4.17904654]
[1694018840884,0.14059294,25612.0,25611.0,4.17904654]
[1694018841878,0.32820524,25613.0,25612.0,0.02]